[Event "Titled Tuesday Blitz February 21 Late 2023"]
[White "Danielyan, Vahe"]
[Black "Rasulov, Vugar"]
[WhiteFideId "13304828"]
[BlackFideId "13402390"]
[WhiteElo "2346"]
[BlackElo "2523"]
[Result "0-1"]
[Round "06"]
[TimeControl "180+2"]
[Date "2023.02.21"]
[WhiteClock "0:00:02"]
[BlackClock "0:00:53"]

1. d4 {[%clk 0:02:59]}  a6 {[%clk 0:03:00]} 2. h4 {[%clk 0:02:57]}  b5 {[%clk 0:03:01]} 3. h5 {[%clk 0:02:57]}  Bb7 {[%clk 0:03:01]} 4. a4 {[%clk 0:02:58]}  e6 {[%clk 0:02:59]} 5. Nf3 {[%clk 0:02:58]}  b4 {[%clk 0:02:59]} 6. e3 {[%clk 0:02:58]}  h6 {[%clk 0:02:59]} 7. Nbd2 {[%clk 0:02:58]}  Nf6 {[%clk 0:03:00]} 8. Nc4 {[%clk 0:02:57]}  Be7 {[%clk 0:02:58]} 9. Be2 {[%clk 0:02:57]}  O-O {[%clk 0:02:56]} 10. b3 {[%clk 0:02:58]}  c5 {[%clk 0:02:55]} 11. Bb2 {[%clk 0:02:57]}  cxd4 {[%clk 0:02:56]} 12. Nxd4 {[%clk 0:02:52]}  d5 {[%clk 0:02:53]} 13. Ne5 {[%clk 0:02:52]}  Nbd7 {[%clk 0:02:53]} 14. Nxd7 {[%clk 0:02:51]}  Qxd7 {[%clk 0:02:54]} 15. Nf3 {[%clk 0:02:50]}  Ne4 {[%clk 0:02:53]} 16. Bd3 {[%clk 0:02:44]}  Qc7 {[%clk 0:02:49]} 17. O-O {[%clk 0:02:39]}  Rac8 {[%clk 0:02:48]} 18. Be5 {[%clk 0:02:37]}  Bd6 {[%clk 0:02:42]} 19. Bxd6 {[%clk 0:02:32]}  Nxd6 {[%clk 0:02:43]} 20. a5 {[%clk 0:02:26]}  Ne4 {[%clk 0:02:42]} 21. Bxe4 {[%clk 0:02:22]}  dxe4 {[%clk 0:02:43]} 22. Nd4 {[%clk 0:02:22]}  Rfd8 {[%clk 0:02:38]} 23. Qg4 {[%clk 0:02:22]}  Rd5 {[%clk 0:02:39]} 24. Ra4 {[%clk 0:02:09]}  Qc5 {[%clk 0:02:30]} 25. Qxe4 {[%clk 0:02:03]}  Rcd8 {[%clk 0:02:25]} 26. Nf3 {[%clk 0:01:54]}  Bc6 {[%clk 0:02:18]} 27. Rxb4 {[%clk 0:01:19]}  Rxh5 {[%clk 0:02:16]} 28. Qg4 {[%clk 0:00:48]}  Rf5 {[%clk 0:02:08]} 29. Rc4 {[%clk 0:00:42]}  Bxf3 {[%clk 0:02:07]} 30. Qxf3 {[%clk 0:00:31]}  Qxa5 {[%clk 0:01:59]} 31. Qc6 {[%clk 0:00:26]}  Qd2 {[%clk 0:01:43]} 32. Qxa6 {[%clk 0:00:19]}  Qe2 {[%clk 0:01:43]} 33. Rc6 {[%clk 0:00:14]}  Qg4 {[%clk 0:01:39]} 34. Rc8 {[%clk 0:00:10]}  Rxc8 {[%clk 0:01:39]} 35. Qxc8+ {[%clk 0:00:10]}  Kh7 {[%clk 0:01:40]} 36. Qc3 {[%clk 0:00:08]}  Rg5 {[%clk 0:01:36]} 37. Qd3+ {[%clk 0:00:07]}  f5 {[%clk 0:01:36]} 38. g3 {[%clk 0:00:07]}  h5 {[%clk 0:01:33]} 39. Qd4 {[%clk 0:00:03]}  Qh3 {[%clk 0:01:30]} 40. Qf4 {[%clk 0:00:02]}  Kg6 {[%clk 0:01:18]} 41. Qf3 {[%clk 0:00:02]}  h4 {[%clk 0:01:18]} 42. Qg2 {[%clk 0:00:03]}  Qg4 {[%clk 0:01:17]} 43. f4 {[%clk 0:00:03]}  h3 {[%clk 0:01:05]} 44. Qf3 {[%clk 0:00:03]}  Qxg3+ {[%clk 0:01:04]} 45. Qxg3 {[%clk 0:00:04]}  Rxg3+ {[%clk 0:01:05]} 46. Kh1 {[%clk 0:00:04]}  Rxe3 {[%clk 0:01:05]} 47. b4 {[%clk 0:00:04]}  Rc3 {[%clk 0:01:04]} 48. b5 {[%clk 0:00:03]}  Rxc2 {[%clk 0:01:04]} 49. Rb1 {[%clk 0:00:03]}  Rc7 {[%clk 0:00:59]} 50. b6 {[%clk 0:00:04]}  Rb7 {[%clk 0:01:00]} 51. Kh2 {[%clk 0:00:04]}  Kf6 {[%clk 0:00:56]} 52. Kxh3 {[%clk 0:00:05]}  Ke7 {[%clk 0:00:53]} 53. Kh4 {[%clk 0:00:03]}  Kd6 {[%clk 0:00:54]} 54. Kg5 {[%clk 0:00:03]}  Kc6 {[%clk 0:00:53]} 55. Kg6 {[%clk 0:00:03]}  Rxb6 {[%clk 0:00:53]} 56. Rxb6+ {[%clk 0:00:02]}  Kxb6 {[%clk 0:00:54]} 57. Kxg7 {[%clk 0:00:03]}  Kc5 {[%clk 0:00:54]} 58. Kf7 {[%clk 0:00:03]}  Kd4 {[%clk 0:00:52]} 59. Kxe6 {[%clk 0:00:02]}  Ke4 {[%clk 0:00:53]} 0-1


[Site "https://www.chess.com"]

[Event "Titled Tuesday Blitz February 21 Late 2023"]
[White "Ibadov, Dashgyn"]
[Black "Golubka, Petro"]
[WhiteFideId "24107514"]
[BlackFideId "14114224"]
[WhiteElo "2391"]
[BlackElo "2371"]
[Result "0-1"]
[Round "06"]
[TimeControl "180+2"]
[Date "2023.02.21"]
[WhiteClock "0:00:04"]
[BlackClock "0:01:02"]

1. e4 {[%clk 0:03:00]}  c5 {[%clk 0:02:04]} 2. Nf3 {[%clk 0:02:59]}  Nc6 {[%clk 0:02:03]} 3. Bb5 {[%clk 0:02:58]}  Na5 {[%clk 0:02:03]} 4. Nc3 {[%clk 0:02:49]}  a6 {[%clk 0:02:04]} 5. Be2 {[%clk 0:02:49]}  e6 {[%clk 0:02:02]} 6. d4 {[%clk 0:02:48]}  cxd4 {[%clk 0:02:03]} 7. Nxd4 {[%clk 0:02:47]}  b5 {[%clk 0:01:59]} 8. a3 {[%clk 0:02:35]}  Bb7 {[%clk 0:01:56]} 9. O-O {[%clk 0:02:35]}  Rc8 {[%clk 0:01:55]} 10. Be3 {[%clk 0:02:18]}  h5 {[%clk 0:01:52]} 11. f4 {[%clk 0:02:12]}  Nf6 {[%clk 0:01:41]} 12. e5 {[%clk 0:02:04]}  Ng4 {[%clk 0:01:40]} 13. Bxg4 {[%clk 0:01:56]}  Nc4 {[%clk 0:01:40]} 14. Bf2 {[%clk 0:00:54]}  hxg4 {[%clk 0:01:25]} 15. Qxg4 {[%clk 0:00:54]}  Nxb2 {[%clk 0:01:25]} 16. Nce2 {[%clk 0:00:46]}  Nc4 {[%clk 0:01:24]} 17. f5 {[%clk 0:00:32]}  Nxe5 {[%clk 0:01:23]} 18. Qg3 {[%clk 0:00:32]}  Nc4 {[%clk 0:01:15]} 19. fxe6 {[%clk 0:00:25]}  dxe6 {[%clk 0:01:16]} 20. Nxe6 {[%clk 0:00:24]}  fxe6 {[%clk 0:01:12]} 21. Qg6+ {[%clk 0:00:25]}  Kd7 {[%clk 0:01:12]} 22. Rad1+ {[%clk 0:00:23]}  Bd6 {[%clk 0:01:10]} 23. Bg3 {[%clk 0:00:15]}  Bd5 {[%clk 0:01:08]} 24. Qxg7+ {[%clk 0:00:10]}  Kc6 {[%clk 0:01:06]} 25. Nd4+ {[%clk 0:00:09]}  Kb6 {[%clk 0:01:06]} 26. Bf2 {[%clk 0:00:04]}  Bxh2+ {[%clk 0:01:04]} 27. Kh1 {[%clk 0:00:04]}  Be5+ {[%clk 0:01:05]} 28. Kg1 {[%clk 0:00:04]}  Bxg7 {[%clk 0:01:03]} 29. Nxe6+ {[%clk 0:00:04]}  Kb7 {[%clk 0:01:02]} 30. Nxd8+ {[%clk 0:00:04]}  Rcxd8 {[%clk 0:01:02]} 0-1


[Site "https://www.chess.com"]

[Event "Titled Tuesday Blitz February 21 Late 2023"]
[White "Remolar Gallen, Jose"]
[Black "Salimova, Nurgyul"]
[WhiteFideId "2215187"]
[BlackFideId "2915138"]
[WhiteElo "2285"]
[BlackElo "2391"]
[Result "0-1"]
[Round "06"]
[TimeControl "180+2"]
[Date "2023.02.21"]
[WhiteClock "0:00:18"]
[BlackClock "0:00:51"]

1. e4 {[%clk 0:03:00]}  e5 {[%clk 0:02:59]} 2. Nf3 {[%clk 0:02:59]}  Nc6 {[%clk 0:03:00]} 3. Bb5 {[%clk 0:02:58]}  a6 {[%clk 0:02:59]} 4. Ba4 {[%clk 0:02:58]}  g6 {[%clk 0:02:49]} 5. O-O {[%clk 0:02:54]}  Bg7 {[%clk 0:02:48]} 6. c3 {[%clk 0:02:53]}  d6 {[%clk 0:02:48]} 7. h3 {[%clk 0:02:52]}  Bd7 {[%clk 0:02:48]} 8. d4 {[%clk 0:02:50]}  Nf6 {[%clk 0:02:47]} 9. Re1 {[%clk 0:02:48]}  O-O {[%clk 0:02:45]} 10. Bg5 {[%clk 0:02:42]}  h6 {[%clk 0:02:43]} 11. Bh4 {[%clk 0:02:42]}  Qe8 {[%clk 0:02:36]} 12. Bc2 {[%clk 0:02:16]}  Nh5 {[%clk 0:02:28]} 13. d5 {[%clk 0:01:51]}  Ne7 {[%clk 0:02:28]} 14. Bxe7 {[%clk 0:01:48]}  Qxe7 {[%clk 0:02:28]} 15. Nbd2 {[%clk 0:01:45]}  Nf4 {[%clk 0:02:26]} 16. Nf1 {[%clk 0:01:42]}  h5 {[%clk 0:02:19]} 17. h4 {[%clk 0:01:31]}  Bg4 {[%clk 0:02:12]} 18. N1h2 {[%clk 0:01:29]}  f5 {[%clk 0:02:03]} 19. Qd2 {[%clk 0:01:17]}  Bh6 {[%clk 0:01:54]} 20. Ng5 {[%clk 0:00:45]}  Bxg5 {[%clk 0:01:48]} 21. hxg5 {[%clk 0:00:46]}  Qxg5 {[%clk 0:01:48]} 22. Qe3 {[%clk 0:00:34]}  Bh3 {[%clk 0:01:39]} 23. g3 {[%clk 0:00:31]}  fxe4 {[%clk 0:01:22]} 24. Bxe4 {[%clk 0:00:30]}  Bf5 {[%clk 0:01:12]} 25. Nf3 {[%clk 0:00:22]}  Qg4 {[%clk 0:01:04]} 26. Nh2 {[%clk 0:00:21]}  Nh3+ {[%clk 0:00:57]} 27. Kf1 {[%clk 0:00:18]}  Qxe4 {[%clk 0:00:51]} 0-1


[Site "https://www.chess.com"]

[Event "Titled Tuesday Blitz February 21 Late 2023"]
[White "Toncheva, Nadya"]
[Black "Preotu, Razvan"]
[WhiteFideId "2924056"]
[BlackFideId "2613280"]
[WhiteElo "2295"]
[BlackElo "2475"]
[Result "0-1"]
[Round "06"]
[TimeControl "180+2"]
[Date "2023.02.21"]
[WhiteClock "0:00:03"]
[BlackClock "0:00:04"]

1. e4 {[%clk 0:03:00]}  c5 {[%clk 0:02:53]} 2. Nf3 {[%clk 0:03:01]}  d6 {[%clk 0:02:53]} 3. d4 {[%clk 0:03:00]}  cxd4 {[%clk 0:02:54]} 4. Nxd4 {[%clk 0:03:01]}  Nf6 {[%clk 0:02:55]} 5. Nc3 {[%clk 0:03:02]}  a6 {[%clk 0:02:55]} 6. Be3 {[%clk 0:03:02]}  e5 {[%clk 0:02:55]} 7. Nf3 {[%clk 0:03:02]}  Be7 {[%clk 0:02:54]} 8. Bc4 {[%clk 0:03:02]}  O-O {[%clk 0:02:55]} 9. O-O {[%clk 0:03:02]}  Nc6 {[%clk 0:02:55]} 10. Qd2 {[%clk 0:02:59]}  Bg4 {[%clk 0:02:50]} 11. Ne1 {[%clk 0:02:50]}  b5 {[%clk 0:02:48]} 12. Bb3 {[%clk 0:02:48]}  Na5 {[%clk 0:02:11]} 13. f3 {[%clk 0:02:47]}  Nxb3 {[%clk 0:02:11]} 14. axb3 {[%clk 0:02:47]}  Be6 {[%clk 0:02:12]} 15. Nd3 {[%clk 0:02:37]}  Qc7 {[%clk 0:01:16]} 16. Nb4 {[%clk 0:02:29]}  Qb7 {[%clk 0:01:16]} 17. Rfd1 {[%clk 0:02:24]}  Rfc8 {[%clk 0:01:14]} 18. Kh1 {[%clk 0:02:18]}  a5 {[%clk 0:01:04]} 19. Nbd5 {[%clk 0:02:12]}  Nxd5 {[%clk 0:01:04]} 20. Nxd5 {[%clk 0:02:10]}  Bxd5 {[%clk 0:01:05]} 21. exd5 {[%clk 0:02:04]}  b4 {[%clk 0:00:57]} 22. Qd3 {[%clk 0:01:59]}  g6 {[%clk 0:00:52]} 23. Bd2 {[%clk 0:01:35]}  Rc5 {[%clk 0:00:44]} 24. Be3 {[%clk 0:01:33]}  Rc7 {[%clk 0:00:44]} 25. Bd2 {[%clk 0:01:30]}  Rac8 {[%clk 0:00:43]} 26. c4 {[%clk 0:01:21]}  bxc3 {[%clk 0:00:43]} 27. Bxc3 {[%clk 0:01:09]}  Qxb3 {[%clk 0:00:41]} 28. Rxa5 {[%clk 0:01:08]}  Bf6 {[%clk 0:00:31]} 29. Qd2 {[%clk 0:00:55]}  Bg5 {[%clk 0:00:26]} 30. Qe2 {[%clk 0:00:47]}  h5 {[%clk 0:00:20]} 31. Rda1 {[%clk 0:00:40]}  h4 {[%clk 0:00:19]} 32. Rb5 {[%clk 0:00:31]}  Qc4 {[%clk 0:00:18]} 33. Qxc4 {[%clk 0:00:31]}  Rxc4 {[%clk 0:00:19]} 34. Kg1 {[%clk 0:00:29]}  Be3+ {[%clk 0:00:19]} 35. Kf1 {[%clk 0:00:29]}  Bd4 {[%clk 0:00:19]} 36. Bxd4 {[%clk 0:00:24]}  Rxd4 {[%clk 0:00:20]} 37. Ra6 {[%clk 0:00:13]}  Rc2 {[%clk 0:00:18]} 38. Ke1 {[%clk 0:00:08]}  Rxg2 {[%clk 0:00:06]} 39. Rxd6 {[%clk 0:00:08]}  Rxh2 {[%clk 0:00:06]} 40. Rd8+ {[%clk 0:00:07]}  Kg7 {[%clk 0:00:06]} 41. Ra8 {[%clk 0:00:04]}  h3 {[%clk 0:00:04]} 42. Kf1 {[%clk 0:00:03]} 0-1


[Site "https://www.chess.com"]

[Event "Titled Tuesday Blitz February 21 Late 2023"]
[White "Bjelobrk, Igor"]
[Black "Postma, Dinant"]
[WhiteFideId "4300726"]
[BlackFideId "1018612"]
[WhiteElo "2403"]
[BlackElo "2131"]
[Result "0-1"]
[Round "06"]
[TimeControl "180+2"]
[Date "2023.02.21"]
[WhiteClock "0:01:07"]
[BlackClock "0:00:28"]

1. d4 {[%clk 0:03:00]}  d5 {[%clk 0:02:54]} 2. c4 {[%clk 0:03:00]}  e6 {[%clk 0:02:54]} 3. g3 {[%clk 0:02:59]}  c5 {[%clk 0:02:55]} 4. cxd5 {[%clk 0:02:58]}  exd5 {[%clk 0:02:54]} 5. Nf3 {[%clk 0:02:59]}  Nc6 {[%clk 0:02:53]} 6. Bg2 {[%clk 0:02:59]}  Nf6 {[%clk 0:02:54]} 7. O-O {[%clk 0:02:58]}  Be7 {[%clk 0:02:50]} 8. Nc3 {[%clk 0:02:57]}  O-O {[%clk 0:02:44]} 9. Bg5 {[%clk 0:02:57]}  cxd4 {[%clk 0:02:40]} 10. Nxd4 {[%clk 0:02:56]}  h6 {[%clk 0:02:41]} 11. Be3 {[%clk 0:02:56]}  Re8 {[%clk 0:02:40]} 12. Qa4 {[%clk 0:02:55]}  Bd7 {[%clk 0:02:35]} 13. Rad1 {[%clk 0:02:54]}  Ne5 {[%clk 0:02:27]} 14. Qb3 {[%clk 0:02:53]}  Bc6 {[%clk 0:02:08]} 15. Nf5 {[%clk 0:02:41]}  Bf8 {[%clk 0:02:02]} 16. Nxd5 {[%clk 0:02:37]}  Nxd5 {[%clk 0:01:56]} 17. Bxd5 {[%clk 0:02:36]}  Qf6 {[%clk 0:01:53]} 18. Bxc6 {[%clk 0:02:25]}  bxc6 {[%clk 0:01:16]} 19. Nd4 {[%clk 0:02:17]}  c5 {[%clk 0:01:13]} 20. Nc2 {[%clk 0:02:06]}  Rab8 {[%clk 0:01:05]} 21. Qc3 {[%clk 0:02:05]}  Rxb2 {[%clk 0:01:02]} 22. Kg2 {[%clk 0:01:42]}  Qc6+ {[%clk 0:00:54]} 23. f3 {[%clk 0:01:42]}  Rxa2 {[%clk 0:00:49]} 24. Bf2 {[%clk 0:01:35]}  Qa4 {[%clk 0:00:44]} 25. Rd2 {[%clk 0:01:31]}  Nc4 {[%clk 0:00:41]} 26. Rfd1 {[%clk 0:01:21]}  Nxd2 {[%clk 0:00:38]} 27. Rxd2 {[%clk 0:01:22]}  a5 {[%clk 0:00:37]} 28. e4 {[%clk 0:01:12]}  Rb8 {[%clk 0:00:31]} 29. h4 {[%clk 0:01:07]}  Rbb2 {[%clk 0:00:28]} 0-1


[Site "https://www.chess.com"]

[Event "Titled Tuesday Blitz February 21 Late 2023"]
[White "Jaracz, Pawel"]
[Black "Golubev, Mikhail"]
[WhiteFideId "1102222"]
[BlackFideId "14100983"]
[WhiteElo "2467"]
[BlackElo "2461"]
[Result "1-0"]
[Round "06"]
[TimeControl "180+2"]
[Date "2023.02.21"]
[WhiteClock "0:00:35"]
[BlackClock "0:00:06"]

1. d4 {[%clk 0:03:00]}  Nf6 {[%clk 0:02:59]} 2. c4 {[%clk 0:03:00]}  g6 {[%clk 0:02:59]} 3. g3 {[%clk 0:03:00]}  Bg7 {[%clk 0:03:00]} 4. Bg2 {[%clk 0:03:00]}  O-O {[%clk 0:03:00]} 5. Nc3 {[%clk 0:02:59]}  d6 {[%clk 0:03:00]} 6. Nf3 {[%clk 0:03:00]}  Nbd7 {[%clk 0:03:01]} 7. O-O {[%clk 0:03:00]}  e5 {[%clk 0:03:01]} 8. e4 {[%clk 0:03:00]}  Re8 {[%clk 0:03:01]} 9. h3 {[%clk 0:02:59]}  b6 {[%clk 0:02:59]} 10. Be3 {[%clk 0:02:40]}  exd4 {[%clk 0:02:58]} 11. Nxd4 {[%clk 0:02:40]}  Bb7 {[%clk 0:02:58]} 12. Qc2 {[%clk 0:02:34]}  Nc5 {[%clk 0:02:58]} 13. f3 {[%clk 0:02:34]}  a5 {[%clk 0:02:58]} 14. Rad1 {[%clk 0:02:32]}  Nh5 {[%clk 0:02:47]} 15. Bf2 {[%clk 0:02:31]}  Be5 {[%clk 0:02:39]} 16. f4 {[%clk 0:02:28]}  Bg7 {[%clk 0:02:28]} 17. Rfe1 {[%clk 0:02:27]}  Nf6 {[%clk 0:02:19]} 18. e5 {[%clk 0:02:19]}  dxe5 {[%clk 0:01:51]} 19. Nf5 {[%clk 0:02:06]}  Qc8 {[%clk 0:01:40]} 20. Nxg7 {[%clk 0:02:06]}  Kxg7 {[%clk 0:01:36]} 21. fxe5 {[%clk 0:01:53]}  Nfd7 {[%clk 0:01:36]} 22. Nd5 {[%clk 0:01:51]}  Ne6 {[%clk 0:01:29]} 23. Qc3 {[%clk 0:01:46]}  c6 {[%clk 0:01:15]} 24. Nf6 {[%clk 0:01:44]}  Nxf6 {[%clk 0:01:14]} 25. exf6+ {[%clk 0:01:44]}  Kg8 {[%clk 0:01:14]} 26. Qd2 {[%clk 0:01:27]}  c5 {[%clk 0:01:12]} 27. Qh6 {[%clk 0:01:24]}  Qc7 {[%clk 0:01:12]} 28. Bd5 {[%clk 0:01:09]}  Rad8 {[%clk 0:01:12]} 29. Re4 {[%clk 0:01:07]}  g5 {[%clk 0:00:43]} 30. Rg4 {[%clk 0:00:57]}  Qe5 {[%clk 0:00:37]} 31. Re1 {[%clk 0:00:57]}  Rxd5 {[%clk 0:00:28]} 32. cxd5 {[%clk 0:00:36]}  Qxg3+ {[%clk 0:00:06]} 33. Rxg3 {[%clk 0:00:35]} 1-0


[Site "https://www.chess.com"]

[Event "Titled Tuesday Blitz February 21 Late 2023"]
[White "ArchibaldCerveza29"]
[Black "Ozer, Omer Faruk"]
[BlackFideId "6354564"]
[WhiteElo "2503"]
[BlackElo "2360"]
[Result "1-0"]
[Round "06"]
[TimeControl "180+2"]
[Date "2023.02.21"]
[WhiteClock "0:00:06"]
[BlackClock "0:00:11"]

1. e4 {[%clk 0:03:00]}  e5 {[%clk 0:02:59]} 2. Nf3 {[%clk 0:03:00]}  Nf6 {[%clk 0:02:59]} 3. Bc4 {[%clk 0:02:59]}  Nxe4 {[%clk 0:02:51]} 4. Nc3 {[%clk 0:02:59]}  Nf6 {[%clk 0:02:46]} 5. Nxe5 {[%clk 0:02:43]}  d5 {[%clk 0:02:45]} 6. Bb3 {[%clk 0:02:40]}  c6 {[%clk 0:02:38]} 7. O-O {[%clk 0:02:40]}  Be7 {[%clk 0:02:37]} 8. d4 {[%clk 0:02:39]}  O-O {[%clk 0:02:38]} 9. Ne2 {[%clk 0:02:39]}  Bf5 {[%clk 0:02:37]} 10. Ng3 {[%clk 0:02:34]}  Bg6 {[%clk 0:02:36]} 11. Re1 {[%clk 0:02:27]}  Nbd7 {[%clk 0:02:36]} 12. Bg5 {[%clk 0:02:25]}  Nxe5 {[%clk 0:02:33]} 13. Rxe5 {[%clk 0:02:09]}  Bd6 {[%clk 0:02:12]} 14. Re3 {[%clk 0:02:05]}  h6 {[%clk 0:02:09]} 15. Bh4 {[%clk 0:01:55]}  Bf4 {[%clk 0:02:04]} 16. Re1 {[%clk 0:01:55]}  Qd6 {[%clk 0:01:59]} 17. c3 {[%clk 0:01:48]}  Rae8 {[%clk 0:01:58]} 18. Nf1 {[%clk 0:01:32]}  Rxe1 {[%clk 0:01:49]} 19. Qxe1 {[%clk 0:01:32]}  Re8 {[%clk 0:01:49]} 20. Qd1 {[%clk 0:01:32]}  Bh5 {[%clk 0:01:46]} 21. Qd3 {[%clk 0:01:03]}  Be2 {[%clk 0:01:42]} 22. Qf5 {[%clk 0:01:03]}  Bxf1 {[%clk 0:01:40]} 23. Rxf1 {[%clk 0:01:04]}  Bxh2+ {[%clk 0:01:39]} 24. Kh1 {[%clk 0:01:04]}  g5 {[%clk 0:01:38]} 25. Bxg5 {[%clk 0:00:39]}  hxg5 {[%clk 0:01:36]} 26. Qxg5+ {[%clk 0:00:40]}  Kf8 {[%clk 0:01:26]} 27. Qh6+ {[%clk 0:00:38]}  Kg8 {[%clk 0:01:22]} 28. Qxh2 {[%clk 0:00:26]}  Qxh2+ {[%clk 0:01:21]} 29. Kxh2 {[%clk 0:00:27]}  Re2 {[%clk 0:01:21]} 30. c4 {[%clk 0:00:20]}  dxc4 {[%clk 0:01:16]} 31. Bxc4 {[%clk 0:00:21]}  Rxb2 {[%clk 0:01:16]} 32. Bb3 {[%clk 0:00:20]}  Rd2 {[%clk 0:01:13]} 33. Re1 {[%clk 0:00:19]}  Rxd4 {[%clk 0:01:11]} 34. Re7 {[%clk 0:00:19]}  Rd7 {[%clk 0:01:11]} 35. Bxf7+ {[%clk 0:00:17]}  Kg7 {[%clk 0:01:10]} 36. Rxd7 {[%clk 0:00:18]}  Nxd7 {[%clk 0:01:10]} 37. Bb3 {[%clk 0:00:19]}  b5 {[%clk 0:01:10]} 38. f4 {[%clk 0:00:19]}  a5 {[%clk 0:01:09]} 39. g4 {[%clk 0:00:18]}  a4 {[%clk 0:01:09]} 40. Bc2 {[%clk 0:00:19]}  Nc5 {[%clk 0:01:09]} 41. Kg3 {[%clk 0:00:19]}  b4 {[%clk 0:01:08]} 42. f5 {[%clk 0:00:19]}  b3 {[%clk 0:01:07]} 43. axb3 {[%clk 0:00:20]}  axb3 {[%clk 0:01:07]} 44. Bb1 {[%clk 0:00:21]}  Na4 {[%clk 0:01:06]} 45. Kf4 {[%clk 0:00:19]}  Nc3 {[%clk 0:01:07]} 46. Bd3 {[%clk 0:00:20]}  Nd5+ {[%clk 0:01:02]} 47. Ke5 {[%clk 0:00:19]}  Nb4 {[%clk 0:00:57]} 48. Be4 {[%clk 0:00:19]}  c5 {[%clk 0:00:57]} 49. f6+ {[%clk 0:00:19]}  Kf8 {[%clk 0:00:56]} 50. g5 {[%clk 0:00:20]}  c4 {[%clk 0:00:55]} 51. Kd4 {[%clk 0:00:15]}  b2 {[%clk 0:00:21]} 52. Kxc4 {[%clk 0:00:14]}  Nc6 {[%clk 0:00:19]} 53. Kd5 {[%clk 0:00:12]}  Nb8 {[%clk 0:00:13]} 54. Kd6 {[%clk 0:00:10]}  Kf7 {[%clk 0:00:14]} 55. Ke5 {[%clk 0:00:06]}  Nd7+ {[%clk 0:00:13]} 56. Kf5 {[%clk 0:00:07]}  Nc5 {[%clk 0:00:12]} 57. g6+ {[%clk 0:00:07]}  Kf8 {[%clk 0:00:12]} 58. g7+ {[%clk 0:00:06]}  Kg8 {[%clk 0:00:11]} 59. Bd5+ {[%clk 0:00:06]} 1-0


[Site "https://www.chess.com"]

[Event "Titled Tuesday Blitz February 21 Late 2023"]
[White "Zochowski, Kacper"]
[Black "Gascon Del Nogal, Jose Rafael"]
[WhiteFideId "1125494"]
[BlackFideId "3902463"]
[WhiteElo "2262"]
[BlackElo "2459"]
[Result "1-0"]
[Round "06"]
[TimeControl "180+2"]
[Date "2023.02.21"]
[WhiteClock "0:01:53"]
[BlackClock "0:00:29"]

1. Nf3 {[%clk 0:03:00]}  d5 {[%clk 0:02:59]} 2. c4 {[%clk 0:03:01]}  e6 {[%clk 0:02:58]} 3. g3 {[%clk 0:03:01]}  Nf6 {[%clk 0:02:58]} 4. Bg2 {[%clk 0:03:02]}  Bd6 {[%clk 0:02:58]} 5. O-O {[%clk 0:03:02]}  O-O {[%clk 0:02:58]} 6. b3 {[%clk 0:03:03]}  dxc4 {[%clk 0:02:56]} 7. bxc4 {[%clk 0:03:03]}  e5 {[%clk 0:02:57]} 8. Bb2 {[%clk 0:03:00]}  Re8 {[%clk 0:02:24]} 9. Nc3 {[%clk 0:02:59]}  c6 {[%clk 0:02:23]} 10. d3 {[%clk 0:02:56]}  Na6 {[%clk 0:02:23]} 11. Ng5 {[%clk 0:02:52]}  Nc5 {[%clk 0:02:22]} 12. Nge4 {[%clk 0:02:52]}  Nfxe4 {[%clk 0:02:22]} 13. Nxe4 {[%clk 0:02:53]}  Nxe4 {[%clk 0:02:22]} 14. Bxe4 {[%clk 0:02:54]}  Bh3 {[%clk 0:02:21]} 15. Bg2 {[%clk 0:02:54]}  Qd7 {[%clk 0:02:20]} 16. Rb1 {[%clk 0:02:52]}  Re7 {[%clk 0:02:11]} 17. Qc1 {[%clk 0:02:43]}  Qg4 {[%clk 0:01:59]} 18. Ba3 {[%clk 0:02:34]}  Rd8 {[%clk 0:01:33]} 19. Bxd6 {[%clk 0:02:25]}  Rxd6 {[%clk 0:01:33]} 20. Qa3 {[%clk 0:02:23]}  Red7 {[%clk 0:00:54]} 21. Rxb7 {[%clk 0:02:18]}  h5 {[%clk 0:00:51]} 22. Qxa7 {[%clk 0:02:14]}  h4 {[%clk 0:00:42]} 23. Rb8+ {[%clk 0:02:00]}  Kh7 {[%clk 0:00:41]} 24. Bxh3 {[%clk 0:01:56]}  Qxh3 {[%clk 0:00:41]} 25. Qa8 {[%clk 0:01:56]}  e4 {[%clk 0:00:29]} 26. Rh8+ {[%clk 0:01:54]}  Kg6 {[%clk 0:00:29]} 27. Rxh4 {[%clk 0:01:53]} 1-0


[Site "https://www.chess.com"]

[Event "Titled Tuesday Blitz February 21 Late 2023"]
[White "Mustafayev, Farid"]
[Black "Hernandez Sanchez, Elvis De La Caridad"]
[WhiteFideId "13408771"]
[BlackFideId "6400353"]
[WhiteElo "2316"]
[BlackElo "2243"]
[Result "0-1"]
[Round "06"]
[TimeControl "180+2"]
[Date "2023.02.21"]
[WhiteClock "0:01:31"]
[BlackClock "0:00:23"]

1. c4 {[%clk 0:03:00]}  Nf6 {[%clk 0:02:59]} 2. Nc3 {[%clk 0:03:00]}  g6 {[%clk 0:02:57]} 3. Nf3 {[%clk 0:03:00]}  Bg7 {[%clk 0:02:56]} 4. g3 {[%clk 0:02:58]}  O-O {[%clk 0:02:56]} 5. Bg2 {[%clk 0:02:58]}  c5 {[%clk 0:02:55]} 6. O-O {[%clk 0:02:59]}  Nc6 {[%clk 0:02:54]} 7. b3 {[%clk 0:02:57]}  d5 {[%clk 0:02:49]} 8. Bb2 {[%clk 0:02:57]}  d4 {[%clk 0:02:46]} 9. Na4 {[%clk 0:02:57]}  Nd7 {[%clk 0:02:34]} 10. e3 {[%clk 0:02:56]}  e5 {[%clk 0:02:26]} 11. exd4 {[%clk 0:02:56]}  exd4 {[%clk 0:02:25]} 12. Ba3 {[%clk 0:02:51]}  Qa5 {[%clk 0:02:07]} 13. d3 {[%clk 0:02:48]}  Nb6 {[%clk 0:01:39]} 14. Nxb6 {[%clk 0:02:29]}  axb6 {[%clk 0:01:34]} 15. Bc1 {[%clk 0:02:29]}  Qc3 {[%clk 0:01:23]} 16. Bf4 {[%clk 0:02:22]}  Nb4 {[%clk 0:01:16]} 17. Bd6 {[%clk 0:02:17]}  Re8 {[%clk 0:01:04]} 18. Re1 {[%clk 0:02:14]}  Bf5 {[%clk 0:00:43]} 19. Rxe8+ {[%clk 0:01:50]}  Rxe8 {[%clk 0:00:44]} 20. Nh4 {[%clk 0:01:45]}  Bxd3 {[%clk 0:00:43]} 21. a3 {[%clk 0:01:40]}  Be2 {[%clk 0:00:34]} 22. Qc1 {[%clk 0:01:35]}  d3 {[%clk 0:00:26]} 23. Bf4 {[%clk 0:01:31]}  Qxa1 {[%clk 0:00:23]} 0-1


[Site "https://www.chess.com"]